Cogmind - Beta 13 *** ADVENTURER MODE // 2024.07.03 @ 01:04:34 Player: Schmaltz Result: Destroyed by G-47 Trooper with Particle Gun Performance ------------- Evolutions (2) 1000 Regions Visited (5) 1000 Robots Destroyed (14) 70 Value Destroyed (473) 473 Prototype IDs (2) 40 Alien Tech Used (0) 0 Bonus (335) 335 TOTAL SCORE: 2918 Bonus ------- Follower Combat Kills 35 Aligned with FarCom 300 Cogmind --------- Core Integrity 0/550 Matter 300/300 Energy 100/100 System Corruption 3% Temperature Cool (9) Movement Core (150) Ox2 Location -8/Materials Parts ------- > --- POWER (1) -------- (None) > --- PROPULSION (4) --- (None) > --- UTILITY (4) ------ Small Storage Unit Improved Power Shielding > --- WEAPON (2) ------- (None) > --- INVENTORY (8) ---- Ion Engine PSU Rigger EM Pulse Gun Peak State ------------ > --- POWER ------------ Ion Engine > --- PROPULSION ------- Aluminum Leg Aluminum Leg > --- UTILITY ---------- Small Storage Unit PSU Rigger > --- WEAPON ----------- EM Pulse Gun Guided Plasma Cannon > --- INVENTORY -------- Ion Engine Light Treads Light Treads Aluminum Leg Small Laser Light Assault Rifle [Rating: 21] Favorites ----------- Power Ion Engine Engine Ion Engine Propulsion Aluminum Leg Treads Light Treads Leg Aluminum Leg Utility Small Storage Unit Device PSU Rigger Storage Small Storage Unit Processor Targeting Computer Protection Improved Power Shielding Weapon EM Pulse Gun Energy Gun EM Pulse Gun Energy Cannon Guided Plasma Cannon Ballistic Gun Assault Rifle Build | -11 -10 -10 -10 -9 -8 ------- Run | Yrd Mat Min Exi Min Mat Slots Evolved 4 | . . . . . 4 Power . | . . . . . . Propulsion 2 | . . . . . 2 Utility 2 | . . . . . 2 Weapon . | . . . . . . Parts Attached 23 | 7 4 . 5 1 6 Power 3 | 2 1 . . . . Engine 3 | 2 1 . . . . Core . | . . . . . . Reactor . | . . . . . . Propulsion 5 | 2 . . . . 3 Treads 2 | . . . . . 2 Leg 3 | 2 . . . . 1 Wheel . | . . . . . . Hover . | . . . . . . Flight . | . . . . . . Utility 6 | 1 1 . 1 1 2 Device 3 | . 1 . 1 1 . Storage 1 | 1 . . . . . Processor 1 | . . . . . 1 Hackware . | . . . . . . Protection 1 | . . . . . 1 Artifact . | . . . . . . Weapon 9 | 2 2 . 4 . 1 Energy Gun 2 | 1 . . 1 . . Energy Cannon 1 | . . . 1 . . Ballistic Gun 6 | 1 2 . 2 . 1 Ballistic Cannon . | . . . . . . Launcher . | . . . . . . Special Weapon . | . . . . . . Impact Weapon . | . . . . . . Slashing Weapon . | . . . . . . Piercing Weapon . | . . . . . . Special Melee Weapon . | . . . . . . Unidentified Prototypes 2 | . . . 2 . . Parts Lost 12 | . 1 . . . 11 Power 1 | . . . . . 1 Propulsion 5 | . . . . . 5 Utility 3 | . 1 . . . 2 Weapon 3 | . . . . . 3 Highest Loss Streak 11 | . 1 . . . 11 To Critical Strikes . | . . . . . . Average Slot Usage (%) 89 | . 94 85 87 100 70 Engine 13 | . 14 14 14 14 8 Leg 26 | . 28 28 28 28 13 Device 6 | . 8 . 2 14 7 Storage 13 | . 14 14 14 14 9 Energy Gun 13 | . 14 14 14 14 8 Ballistic Gun 13 | . 14 14 14 14 5 Naked Turns . | . . . . . . Heaviest Build 16 | 12 14 14 16 14 15 Greatest Support 20 | 20 20 20 20 20 20 Greatest Overweight (x) 4 | . . . . . 4 Average Overweight (x) . | . . . . . . Largest Inventory Capacity 8 | 8 8 8 8 8 8 Average Capacity 7 | 6 8 8 8 8 8 Most Carried 8 | 5 7 6 7 7 8 Average Carried 5 | 2 4 6 6 6 5 Final Capacity 8 | 8 8 8 8 8 8 Final Carried 7 | 4 6 6 6 7 3 Class Distribution -------------------- 94% | Mutant 5% | Skirmisher Dominant Class ---------------- Mutant | -10/Materials Mutant | -10/Mines Mutant | -10/Exiles Mutant | -9/Mines Skirmisher | -8/Materials Resources | -11 -10 -10 -10 -9 -8 ----------- Run | Yrd Mat Min Exi Min Mat Matter Collected 443 | 218 123 . . 67 35 Remotely . | . . . . . . Salvage Created 610 | . 276 . 116 . 218 Parts 25 | . 14 . 6 . 5 Haulers Intercepted . | . . . . . . Recyclers Shooed . | . . . . . . Parts Field Recycled . | . . . . . . Retrieved Matter . | . . . . . . Parts Self-Destructed . | . . . . . . Prevented . | . . . . . . Kills | -11 -10 -10 -10 -9 -8 ------- Run | Yrd Mat Min Exi Min Mat Combat Hostiles Destroyed 13 | . 6 . 3 . 4 Guns 12 | . 5 . 3 . 4 AOE 1 | . 1 . . . . Classes Destroyed 4 | . 3 . 1 . . Recycler 1 | . 1 . . . . Swarmer 3 | . 3 . . . . Grunt 9 | . 3 . 2 . 4 Demolisher 1 | . . . 1 . . Best Kill Streak 3 | . 3 . 3 . 2 Combat Bots Only 3 | . 3 . 3 . 2 Max Kills in Single Turn 2 | . 2 . 1 . 1 Gunslinging . | . . . . . . Exploded 1 | . 1 . . . . Melee . | . . . . . . Uniques/NPCs Destroyed . | . . . . . . Combat | -11 -10 -10 -10 -9 -8 -------- Run | Yrd Mat Min Exi Min Mat Hostile Shots Fired 175 | . 21 . 19 5 130 Missed 35 | . 5 . 9 2 19 Damage Taken 1888 | . 306 . 141 38 1403 Core 642 | . 50 . 18 21 553 Absorbed by Shields . | . . . . . . Redirected to Shielding 72 | . . . . . 72 Ignored by Resistances 535 | . 90 . 39 12 394 Regen/Repaired (Parts) 97 | . 97 . . . . Core Remaining (%) 82 | 100 . . . 64 . Volleys Fired 57 | . 12 . 5 2 38 Largest 2 | . 2 . 2 2 2 Hottest 60 | . 60 . 60 60 60 Shots Fired 93 | . 24 . 10 4 55 Gun 93 | . 24 . 10 4 55 Cannon . | . . . . . . Launcher . | . . . . . . Special . | . . . . . . Kinetic 36 | . 12 . 5 2 17 Thermal 40 | . . . . 2 38 Explosive . | . . . . . . Electromagnetic 17 | . 12 . 5 . . Robot Hit Streak 51 | . 8 . 8 1 51 Robot Miss Streak 4 | . 2 . 1 4 1 Penetration Max . | . . . . . . Secondary Targets 4 | . 1 . 2 . 1 Max Gunslinging Chain 1 | . 1 . 1 . 1 Shots Hit Robots 79 | . 17 . 8 1 53 Core Hits 37 | . 11 . 5 . 21 Critical Kills . | . . . . . . Critical Parts Destroyed . | . . . . . . Critical Strikes . | . . . . . . Melee Attacks . | . . . . . . Impact . | . . . . . . Slashing . | . . . . . . Piercing . | . . . . . . Sneak Attacks . | . . . . . . Combat Hostiles . | . . . . . . Follow-up Attacks . | . . . . . . Damage Inflicted 945 | . 292 . 101 6 546 Guns 840 | . 201 . 101 6 532 Cannons . | . . . . . . Explosions 91 | . 91 . . . . Melee . | . . . . . . Ramming 14 | . . . . . 14 Kinetic 274 | . 86 . 50 6 132 Thermal 491 | . 91 . . . 400 Explosive . | . . . . . . Electromagnetic 166 | . 115 . 51 . . Impact . | . . . . . . Slashing . | . . . . . . Piercing . | . . . . . . Highest Corruption 3 | . . . . . 3 Average Corruption 2 | . . . . . 2 Corruption Purged . | . . . . . . Corruption Blocked . | . . . . . . Overload Shots . | . . . . . . Overflow Damage . | . . . . . . Projectiles . | . . . . . . Explosions . | . . . . . . Melee . | . . . . . . Knockbacks . | . . . . . . Impact . | . . . . . . Kinetic . | . . . . . . Secondary . | . . . . . . Self-Inflicted Damage 133 | . 127 . . . 6 Shots 3 | . 3 . . . . Rammed 13 | . . . . . 13 Targets Rammed 13 | . . . . . 13 Kicked . | . . . . . . Crushed . | . . . . . . Highest Temperature 261 | . 48 . 6 20 261 Average Temperature 73 | . 23 . 6 15 88 Received Heat Transfer 1170 | . 93 . 6 . 1071 Siege Activations . | . . . . . . Robots Corrupted . | . . . . . . Combat Hostiles . | . . . . . . Parts Fried . | . . . . . . Impact Corruptions . | . . . . . . Robots Melted . | . . . . . . Combat Hostiles . | . . . . . . Parts Melted 1 | . . . . . 1 Heat Transferred 1000 | . 100 . . . 900 Parts Sabotaged . | . . . . . . Parts Stolen . | . . . . . . Parts Stripped . | . . . . . . Power Chain Reactions 2 | . 2 . . . . Alert | -11 -10 -10 -10 -9 -8 ------- Run | Yrd Mat Min Exi Min Mat Peak Influence 221 | . 221 72 . . 60 Initial 72 | . . 72 . . . Average 51 | . 121 72 . . 22 Maximum Alert Level 1 | . 1 . . . . Low Security (%) 93 | 100 73 100 . 100 100 Level 1 6 | . 26 . . . . Level 2 . | . . . . . . Level 3 . | . . . . . . Level 4 . | . . . . . . Level 5 . | . . . . . . High Security . | . . . . . . Max Security . | . . . . . . Squads Dispatched 2 | . . . . . 2 Investigation 1 | . . . . . 1 Extermination . | . . . . . . Reinforcement 1 | . . . . . 1 Assault . | . . . . . . Garrison . | . . . . . . Intercept . | . . . . . . Searches Triggered . | . . . . . . Construction Impeded . | . . . . . . Haulers Reinforced . | . . . . . . Active Scanning Responses . | . . . . . . Cargo Convoy Interrupts . | . . . . . . Stealth | -11 -10 -10 -10 -9 -8 --------- Run | Yrd Mat Min Exi Min Mat Distress Signals . | . . . . . . Communications Jammed . | . . . . . . Distress Signals . | . . . . . . Times Spotted 31 | . 10 . 5 5 11 Peak Tracking Total 6 | . 3 . 4 2 6 Tactical Retreats 2 | . 1 . . . 1 Traps | -11 -10 -10 -10 -9 -8 ------- Run | Yrd Mat Min Exi Min Mat Traps Triggered 2 | . 1 . . . 1 Indirectly . | . . . . . . Trap Hack Attempts . | . . . . . . Triggered . | . . . . . . Disarmed . | . . . . . . Reprogrammed . | . . . . . . Reused . | . . . . . . Traps Extracted . | . . . . . . Installed . | . . . . . . Triggered . | . . . . . . Machines | -11 -10 -10 -10 -9 -8 ---------- Run | Yrd Mat Min Exi Min Mat Machines Disabled 1 | . 1 . . . . Max in Single Turn 1 | . 1 . . . . Machines Repaired . | . . . . . . Machines Dismantled . | . . . . . . Machines Sabotaged . | . . . . . . Overloaded Fab Kills . | . . . . . . Hacking | -11 -10 -10 -10 -9 -8 --------- Run | Yrd Mat Min Exi Min Mat Machines Accessed 8 | . 5 . 3 . . Terminals 3 | . 3 . . . . Fabricators . | . . . . . . Repair Stations 1 | . 1 . . . . Recycling Units 1 | . 1 . . . . Scanalyzers . | . . . . . . Garrison Access . | . . . . . . Total Hacks 34 | . 8 . 26 . . Successful 33 | . 7 . 26 . . Failed 1 | . 1 . . . . Catastrophic . | . . . . . . Database Lockouts . | . . . . . . Manual 9 | . 5 . 4 . . Terminals 5 | . 5 . . . . Fabricators . | . . . . . . Repair Stations 2 | . 2 . . . . Recycling Units 1 | . 1 . . . . Scanalyzers . | . . . . . . Garrison Access . | . . . . . . Terminal Hacks 30 | . 4 . 26 . . Record 30 | . 4 . 26 . . Fabricator Hacks . | . . . . . . Repair Station Hacks 2 | . 2 . . . . Scan Component 1 | . 1 . . . . Repair 1 | . 1 . . . . Recycling Unit Hacks . | . . . . . . Scanalyzer . | . . . . . . Garrison Access Hacks . | . . . . . . Unauthorized Hacks 1 | . 1 . . . . Terminals . | . . . . . . Fabricators . | . . . . . . Repair Stations . | . . . . . . Recycling Units 1 | . 1 . . . . Mask 1 | . 1 . . . . Scanalyzers . | . . . . . . Garrison Access . | . . . . . . Data Cores Recovered . | . . . . . . Used . | . . . . . . Hacking Detections 2 | . 2 . . . . Full Trace Events . | . . . . . . Feedback Events . | . . . . . . Feedback Blocked . | . . . . . . Robot Schematics Acquired . | . . . . . . Robots Built . | . . . . . . Authchips . | . . . . . . Time . | . . . . . . Total Robot Build Rating . | . . . . . . Part Schematics Acquired . | . . . . . . Parts Built . | . . . . . . Authchips . | . . . . . . Time . | . . . . . . Total Part Build Rating . | . . . . . . Parts Repaired 1 | . 1 . . . . Time 26 | . 26 . . . . Parts Recycled . | . . . . . . Recycled Matter . | . . . . . . Retrieved Matter . | . . . . . . Retrieved Components . | . . . . . . Parts Scanalyzed . | . . . . . . Part Schematics Acquired . | . . . . . . Parts Damaged . | . . . . . . Bothacking | -11 -10 -10 -10 -9 -8 ------------ Run | Yrd Mat Min Exi Min Mat Used RIF Installer . | . . . . . . Robots Hacked . | . . . . . . Non-combat . | . . . . . . Combat . | . . . . . . Robot Hacks Applied . | . . . . . . Relay Couplers Released . | . . . . . . Fabnet Peak Effective % . | . . . . . . Robots Rewired . | . . . . . . Allies Hacked . | . . . . . . Hacks Repelled . | . . . . . . Allies | -11 -10 -10 -10 -9 -8 -------- Run | Yrd Mat Min Exi Min Mat Total Allies 2 | . . . . 2 . Largest Group 2 | . . . . 2 2 Highest-Rated Group 49 | . . . . 49 49 Highest-Rated Ally 31 | . . . . 31 31 Total Orders . | . . . . . . Ally Attacks 33 | . . . . 21 12 Total Damage 279 | . . . . 156 123 Kills 6 | . . . . 5 1 Allies Corrupted . | . . . . . . Allies Melted . | . . . . . . Intel | -11 -10 -10 -10 -9 -8 ------- Run | Yrd Mat Min Exi Min Mat Robot Analysis Total . | . . . . . . Derelict Logs Recovered 2 | . . 1 . 1 . Drone Launches . | . . . . . . Drone Recoveries . | . . . . . . Exploration | -11 -10 -10 -10 -9 -8 ------------- Run | Yrd Mat Min Exi Min Mat Turns Passed 2228 | 69 353 340 825 454 187 Spaces Moved 1619 | 44 230 281 667 345 52 Core 12 | 8 . . . . 4 Treads . | . . . . . . Legs 1607 | 36 230 281 667 345 48 Wheels . | . . . . . . Hover . | . . . . . . Flight . | . . . . . . Fastest Speed 50 | 50 120 120 120 120 120 Average Speed 119 | 107 120 120 120 120 125 Slowest Speed 250 | 120 120 120 120 120 250 Overloaded Moves . | . . . . . . Propulsion Burnouts . | . . . . . . Robots Hopped . | . . . . . . Cave-ins Triggered . | . . . . . . Exploration Rate (%) 42 | 3 41 45 91 65 10 Regions Visited 5 Branch Regions 3 Pre-discovered Areas . | . . . . . . Known Exits Taken . | . . . . . . Unknown Exits Taken 5 | 1 1 1 1 1 . Scrap Searched 1 | . . 1 . . . Spaces Dug . | . . . . . . Terrain Destroyed 43 | . 43 . . . . Melee . | . . . . . . Projectile . | . . . . . . AOE 43 | . 43 . . . . Terrain Rammed . | . . . . . . Walls Destroyed . | . . . . . . Machines Disabled . | . . . . . . Actions | -11 -10 -10 -10 -9 -8 --------- Run | Yrd Mat Min Exi Min Mat Total 1809 | 66 282 284 681 381 115 Wait 76 | 4 31 4 . 33 4 Move 1614 | 43 229 280 666 344 52 Hop . | . . . . . . Pick Up 22 | 11 5 . 3 1 2 Fast Attach . | . . . . . . Attach 17 | 6 2 . 3 . 6 Detach . | . . . . . . Swap 6 | 1 2 . 2 1 . Drop 4 | 1 1 . 2 . . Fire 57 | . 12 . 5 2 38 Melee . | . . . . . . Ram 13 | . . . . . 13 Kick . | . . . . . . Crush . | . . . . . . Escape Stasis . | . . . . . . Rewire . | . . . . . . Trap . | . . . . . . Miscellaneous . | . . . . . . Route ------- -11/Scrapyard -10/Materials -10/Mines (discovered 3 exits: [*Mat] / *Exi / Sub) -10/Exiles (discovered 2 exits: [*Min x2]) -9/Mines -8/Materials (discovered 1 exit: Sto) History --------- Turn | Location | Event 8 | -11/Scrapyard | Discovered new exit (range 16) 70 | -11/Scrapyard | Entered Materials 250 | -10/Materials | Repaired Assault Rifle 310 | -10/Materials | Build established: Mutant 398 | -10/Materials | Discovered new exit (range 7) 423 | -10/Materials | Entered Mines 425 | -10/Mines | Met a Derelict bent on vengeance 461 | -10/Mines | Discovered new exit (range 9) 514 | -10/Mines | Identified exit to Subcaves 582 | -10/Mines | Deemed a non-threat by the Exiles lab entrance 583 | -10/Mines | Discovered new exit (range 5) 763 | -10/Mines | Entered Exiles 779 | -10/Exiles | Discovered new exit (range 15) 816 | -10/Exiles | Met 8R-AWN 833 | -10/Exiles | Met EX-HEX 886 | -10/Exiles | Met EX-BIN 904 | -10/Exiles | Aligned with FarCom system 905 | -10/Exiles | Given EX-Vault access code 1025 | -10/Exiles | Met EX-DEC 1104 | -10/Exiles | Discovered new exit (range 14) 1190 | -10/Exiles | Visited The Gauntlet 1369 | -10/Exiles | Opened EX-Vault 1399 | -10/Exiles | Warned to stay clear of 0b10 Research branches 1418 | -10/Exiles | Exiles lab attacked by MAIN.C 1426 | -10/Exiles | Found Prototype Device 1427 | -10/Exiles | Identified PSU Rigger 1430 | -10/Exiles | Found Prototype Energy Cannon 1432 | -10/Exiles | Identified Gui. Plasma Cannon 1588 | -10/Exiles | Left Exiles lab with PSU Rigger 1588 | -10/Exiles | Entered Mines 1599 | -9/Mines | Learned 2 Materials zone layouts 1611 | -9/Mines | Discovered new exit (range 12) 1891 | -9/Mines | Assembled infested the area 2042 | -9/Mines | Entered Materials 2042 | -8/Materials | Accompanied by 2 allies 2042 | -8/Materials | Evolved 4 slots: Propulsion x2, Utility x2 2043 | -8/Materials | Identified exit to Storage 2047 | -8/Materials | Led the pair of lost Derelicts to an unsafe place 2215 | -8/Materials | Core integrity fell below 50% 2225 | -8/Materials | Core integrity fell below 20% 2229 | -8/Materials | Destroyed by G-47 Trooper with Particle Gun Last Messages --------------- 02202_ Sml. Laser destroyed. 02206_ Slammed into G-47 Trooper. 02206_ Ion Engine destroyed. 02207_ Acquired 35 matter. 02208_ Slammed into G-47 Trooper. 02208_ Targeting Computer broken. 02208_ Destabilizing: Short circuit. 02210_ Slammed into G-47 Trooper. 02214_ Critical hit (Burn: +37). 02214_ Slammed into G-47 Trooper. 02214_ Destabilizing: System corrupted (+2). 02216_ Slammed into G-47 Trooper. 02217_ Destabilizing: System corrupted (+1). 02219_ Slammed into G-47 Trooper. 02220_ Broken Targeting Computer destroyed. 02222_ Slammed into G-47 Trooper. 02225_ Destabilizing: Core damaged (-27). 02226_ Slammed into G-47 Trooper. 02226_ Destabilizing: Core damaged (-11). 02228_ Slammed into G-47 Trooper. Map ----- +----------------------------------------------------+ | | | | | | | | | | | | | | | | | | | ??????????????????????????????###########????????? | | ??????????????????????????????# #????????? | | ??????????????????????????????# #????????? | | ???????????????????????????#??# #????????? | | ??????????????????????????????# #????????? | | ??????????????????????????????# #??#?????? | | ?????????????????????????????## #????????? | | ??????????????????????????????# #????#???? | | ??????????????????????????##??# #?????#??? | | ????????????????????????????#?#+###+############?? | | ?????????????????????#????????# + """ #?? | | ??????????????????????????????# #### "T" /#?? | | ????????????????? ??#?????????# #??# ### | | ????????????????"????#?########+## #??# ] *# | | ???????????????????????# # #??# # | | ??????????????? ?????#g% % # #?## # | | ????????????Y??????????# @%%g ga # #######+### | | ????????????????#??????#%%% g% # | | ????????????????#???#??# " "%""" + | | ?????????????????#??#### """%"""!# | | ???????????????? w / " [ *"%# """ggg | | ????????????????????#### %*%=# """"" ! !! | | ???????????????????????########### """"" !! | | ????????????????????????#???????## """"" | | ????????????????????? ???????????# """ | | ?????????????????????????????????# ?? | | ???????????????? ???????????#???? ??? | | ????????????????? ?????????????????? #####+#####= | | ?????????????????????????????????##????????????#%[ | | ????????????????????? ???????????????#? ???????#= | | ?????????????????? ????#??????????#????????????+ | | ?????????????????????#??##????#????????????????? | | ??????????????????????#??#?????????? ??????????? | | ??????????????????????????##???????? ?? ?????????? | | ??????????????????????????????# ?????????????????? | | ?????????????????????????????????????????????????? | | ???????????????????????????#????#????????????????? | | ?????????????????????????????????????????????????? | | ?????????????????????????????????????????????????? | | ?????????????????????????????????????????????????? | | ?????????????????????????????????????????????????? | +----------------------------------------------------+ Best States ------------- Heat Dissipation 31 Energy Generation 10 Energy Capacity 250 Matter Stores 300 Matter Capacity 300 Sight Range 16 Terrain Scan Range 16 Terrain Scan Density 10 Resistance: KI 20 Resistance: TH 20 Resistance: EX 20 Resistance: EM 20 Resistance: I 20 Resistance: S 20 Resistance: P 20 Power Shielding 66 Evasion (%) 55 Targeting Accuracy 5 Offensive Hacking 10 Item Schematics ----------------- None Robot Schematics ------------------ None Fabricated ------------ Nothing Alien Tech Used ----------------- None Achievements -------------- True Hacker Challenges ------------ None Game ------ Seed ThermalAerolevSplitter Manual? 0 Play Time 00:42:09 Cumulative 2.8 hours Start 2024.07.02 @ 23:51:07 End 2024.07.03 @ 01:04:34 Sessions 1 Manual Loads 0 Difficulty Adventurer Special Mode None Game No. 3 Rogue 1 Adventurer 2 Explorer 0 Win Type - Total 0 Types 0/0/0/0/0/0/0/0/0 Lore% 13 Gallery% 5 Achievement% 7 Wizard Run 0 Options --------- Layout 1 ASCII 0 Keyboard 0 Movement Mouse Keybinds 0 Fullscreen 1 Font 16/SmallcapsGlow Map View 50x40 Zoom Use 0% Tactical HUD 1 Map Filters NONE Filters NONE Steam SD RUN: 5b98fe36-3e8f-4867-9895-51aeb74e5a35